Workbook

Sheet INVENTORY
A1: # | B1: MAKE | C1: MODEL | D1: PROC. | E1: SPEED | F1: MEM. | G1: OPTICAL | H1: WEBCAM | I1: BATT. | J1: LAPTOP SERIAL # | K1: SN INPUT | L1: HDD SERIAL # | M1: HDD SIZE | N1: FUNC. CODE | O1: COS. CODE | P1: PRE. SAN. | Q1: NON-DATA
A2: 1 | B2: LENOVO | C2: THINKPAD L13 YOGA G3 | D2: RYZEN7 PRO 5875U | E2: 2.00 | F2: 16G | G2: =IF($B2<>"","NO","") -> NO | H2: =IF($B2<>"","YES","") -> YES | I2: YES | J2: =UPPER(K2) -> PW055EYX | K2: PW055EYX | L2: sn9AN86841150B51Y | M2: 512G | N2: =IF($B2<>"","F3","") -> F3 | O2: =IF($B2<>"","C5","") -> C5 | P2: =IF($B2<>"","ENCD","") -> ENCD | Q2: =IF($B2<>"","ND","") -> ND
A3: =IF(B3="","",A2+1) -> 2 | B3: LENOVO | C3: THINKPAD L13 YOGA G3 | D3: RYZEN7 PRO 5875U | E3: 2.00 | F3: 16G | G3: NO | H3: YES | I3: YES | J3: PW055EZY | K3: PW055EZY | L3: TW07YGY09DH0002J00XM | M3: 512G | N3: F3 | O3: C5 | P3: ENCD | Q3: ND
A4: =IF(B4="","",A3+1) -> 3 | B4: LENOVO | C4: THINKPAD L13 YOGA G3 | D4: RYZEN7 PRO 5875U | E4: 2.00 | F4: 16G | G4: NO | H4: YES | I4: YES | J4: PW058CLB | K4: PW058CLB | L4: SN9AN90191030B65H | M4: 512G | N4: F3 | O4: C5 | P4: ENCD | Q4: ND
A5: 4 | B5: LENOVO | C5: THINKPAD L13 YOGA G3 | D5: RYZEN7 PRO 5875U | E5: 2.00 | F5: 16G | G5: NO | H5: YES | I5: YES | J5: PW058CLE | K5: PW058CLE | L5: tw07YGY09DH0002O02CM | M5: 512G | N5: F3 | O5: C5 | P5: ENCD | Q5: ND
A6: 5 | B6: LENOVO | C6: THINKPAD L13 YOGA G3 | D6: RYZEN7 PRO 5875U | E6: 2.00 | F6: 16G | G6: NO | H6: YES | I6: YES | J6: PW058CLS | K6: PW058CLS | L6: sn9AN82571020AU28 | M6: 512G | N6: F3 | O6: C5 | P6: ENCD | Q6: ND
A7: 6 | B7: LENOVO | C7: THINKPAD L13 YOGA G3 | D7: RYZEN7 PRO 5875U | E7: 2.00 | F7: 16G | G7: NO | H7: YES | I7: YES | J7: PW05HGKX | K7: PW05HGKX | L7: z9FPC6EUPTML | M7: 512G | N7: F3 | O7: C5 | P7: ENCD | Q7: ND
A8: 7 | B8: LENOVO | C8: THINKPAD L13 YOGA G3 | D8: RYZEN7 PRO 5875U | E8: 2.00 | F8: 16G | G8: NO | H8: YES | I8: YES | J8: PW05HHTW | K8: PW05HHTW | L8: 605PE0DEPTML | M8: 512G | N8: F3 | O8: C5 | P8: ENCD | Q8: ND
A9: 8 | B9: LENOVO | C9: THINKPAD L13 YOGA G3 | D9: RYZEN7 PRO 5875U | E9: 2.00 | F9: 16G | G9: NO | H9: YES | I9: YES | J9: PW05HHVS | K9: PW05HHVS | L9: tw07YGY09DH0002J00WY | M9: 512G | N9: F3 | O9: C5 | P9: ENCD | Q9: ND
A10: 9 | B10: LENOVO | C10: THINKPAD L13 YOGA G3 | D10: RYZEN7 PRO 5875U | E10: 2.00 | F10: 16G | G10: NO | H10: YES | I10: YES | J10: PW05HYWA | K10: PW05HYWA | L10: SN9BN44181010B74R | M10: 512G | N10: F3 | O10: C5 | P10: ENCD | Q10: ND
A11: 10 | B11: LENOVO | C11: THINKPAD L13 YOGA G3 | D11: RYZEN7 PRO 5875U | E11: 2.00 | F11: 16G | G11: NO | H11: YES | I11: YES | J11: PW05RRYA | K11: PW05RRYA | L11: sn9AN82631130B445 | M11: 512G | N11: F3 | O11: C5 | P11: ENCD | Q11: ND
A12: 11 | B12: LENOVO | C12: THINKPAD L13 YOGA G3 | D12: RYZEN7 PRO 5875U | E12: 2.00 | F12: 16G | G12: NO | H12: YES | I12: YES | J12: PW05RTH4 | K12: PW05RTH4 | L12: TW07YGY09DH0002O02EG | M12: 512G | N12: F3 | O12: C5 | P12: ENCD | Q12: ND
A13: 12 | B13: LENOVO | C13: THINKPAD L13 YOGA G3 | D13: RYZEN7 PRO 5875U | E13: 2.00 | F13: 16G | G13: NO | H13: YES | I13: YES | J13: PW05SGT5 | K13: PW05SGT5 | L13: 606PG96IPTML | M13: 512G | N13: F3 | O13: C5 | P13: ENCD | Q13: ND
A14: 13 | B14: LENOVO | C14: THINKPAD L13 YOGA G3 | D14: RYZEN7 PRO 5875U | E14: 2.00 | F14: 16G | G14: NO | H14: YES | I14: YES | J14: PW05SJHK | K14: PW05SJHK | L14: sd01N670910301U0X | M14: 512G | N14: F3 | O14: C5 | P14: ENCD | Q14: ND
A15: 14 | B15: LENOVO | C15: THINKPAD L13 YOGA G3 | D15: RYZEN7 PRO 5875U | E15: 2.00 | F15: 16G | G15: NO | H15: YES | I15: YES | J15: PW05SJHS | K15: PW05SJHS | L15: sn9AN79251110AU6C | M15: 512G | N15: F3 | O15: C5 | P15: ENCD | Q15: ND
A16: 15 | B16: LENOVO | C16: THINKPAD L13 YOGA G3 | D16: RYZEN7 PRO 5875U | E16: 2.00 | F16: 16G | G16: NO | H16: YES | I16: YES | J16: PW05TP9N | K16: PW05TP9N | L16: SN9AN74551100AU06 | M16: 512G | N16: F3 | O16: C5 | P16: ENCD | Q16: ND

Sheet QA SAMPLE SIZE SHEET
A1: =NOW() -> 2025-12-15T11:00:59.760
A2: DEPARTMENT: LAPTOPS
A3: LOT# | B3: L-42
A4: NOTE: A sample size test of any material that is purchased as tested or data wiped will be conducted on individual shipments. The sample size may vary between 1% and 5% based on results on initial sampling. If testing Failure Rate of initial sampling is greater than 1%, well will continue to test to 5% of the LOT. If the Failure Rate of initial sampling is greater than 5% the entire Lot will be re-tested. If the test results are 1% or Less, the Lot can be processed for Bid. The Quality Assurance Clerk will conduct a Full Function Test along with a Visual Inspection on 5 or more radom items within the LOT. Record the results below.
A5: # | B5: DISCRIPTION OF PRODUCT | E5: SERIAL NUMBER OR SKU | F5: FUNCTION & COSMETIC CODE | G5: PASS - FAIL
A6: 1 | B6: =TRANSPOSE(INVENTORY!C2) -> THINKPAD L13 YOGA G3 | E6: =TRANSPOSE(INVENTORY!J2) -> PW055EYX | F6: F3-C5 | G6: PASS
A7: 2 | B7: =TRANSPOSE(INVENTORY!C3) -> THINKPAD L13 YOGA G3 | E7: =TRANSPOSE(INVENTORY!J3) -> PW055EZY | F7: F3-C5 | G7: PASS
A8: 3 | B8: =TRANSPOSE(INVENTORY!C4) -> THINKPAD L13 YOGA G3 | E8: =TRANSPOSE(INVENTORY!J4) -> PW058CLB | F8: F3-C5 | G8: PASS
A9: 4 | B9: =TRANSPOSE(INVENTORY!C5) -> THINKPAD L13 YOGA G3 | E9: =TRANSPOSE(INVENTORY!J5) -> PW058CLE | F9: F3-C5 | G9: PASS
A10: 5 | B10: =TRANSPOSE(INVENTORY!C6) -> THINKPAD L13 YOGA G3 | E10: =TRANSPOSE(INVENTORY!J6) -> PW058CLS | F10: F3-C5 | G10: PASS
A11: 6
A12: 7
A13: 8
A14: 9
A15: 10
A17: PASS READY FOR BID
A18: _____________________________________________________ QUALITY ASSURANCE CLERK SIGNATURE
A26: FAIL REWORK ENTIRE LOT
A27: _____________________________________________________ QUALITY ASSURANCE CLERK SIGNATURE

Sheet INVENTORY LOG SHEET
A1: INVENTORY LOG SHEET
B3: DEPARTMENT CHECK LIST
A4: DEPT | B4: DEPARTMENT: | G4: LAPTOPS
B5: DESCRIPTION: | G5: LENOVO AMD RYZEN
B6: COUNT: | G6: 15
B7: LOT# | G7: L-42
B8: DEPARTMENT SIGNATURE:_______________________DATE:______________
A10: FORK-LIFT | B10: FORK-LIFT CHECK LIST
B11: GROSS WEIGHT:
B12: TARE WEIGHT:
B13: NET WEIGHT:
C14: o | D14: WEIGHED ON SCALE #1 | H14: X | I14: WEIGHED ON SCALE #2
B15: FORK-LIFT DRIVER SIGNATURE:____________________DATE:______________
A17: QA CLERK | B17: QUALITY ASSURANCE CLERK CHECK LIST
B18: o | C18: Inspect the integrity of the shipment, Sign the Tare Sheet and place in Finished Product.
B19: o | C19: Attach 5 Tare Sheets - 1 on each side of the Gaylord/Pallet including the Top of the shipment.
B20: QA SEAL_______________________INSPECTION DATE:___________________
A22: CLERK | B22: CLERK INVENTORY CHECK LIST
B23: PRODUCT ENTERED INTO INVENTORY
B24: FRONT OFFICE CLERK SIGNATURE:_________________DATE:______________

Sheet TAGS
A1: LAPTOP TESTING RECORD | G1: LAPTOP TESTING RECORD
D3: ITEM # | E3: 1 | J3: ITEM # | K3: =E3+1 -> 2
A4: Tester: | B4: RR | C4: Date: | D4: =NOW() -> 2025-12-15T11:00:59.760 | G4: Tester: | H4: RR | I4: Date: | J4: =NOW() -> 2025-12-15T11:00:59.760
A5: Type: | B5: LAPTOP | C5: SN: | D5: =VLOOKUP(E3,INVENTORYDATA,10,FALSE) -> PW055EYX | G5: Type: | H5: LAPTOP | I5: SN: | J5: =VLOOKUP(K3,INVENTORYDATA,10,FALSE) -> PW055EZY
A6: ="Make: " -> Make: | B6: =VLOOKUP(E3,INVENTORYDATA,2,FALSE) -> LENOVO | C6: ="Model: " -> Model: | D6: =VLOOKUP(E3,INVENTORYDATA,3,FALSE) -> THINKPAD L13 YOGA G3 | G6: ="Make: " -> Make: | H6: =VLOOKUP(K3,INVENTORYDATA,2,FALSE) -> LENOVO | I6: ="Model: " -> Model: | J6: =VLOOKUP(K3,INVENTORYDATA,3,FALSE) -> THINKPAD L13 YOGA G3
A7: ="CPU/Speed: " -> CPU/Speed: | B7: =VLOOKUP(E3,INVENTORYDATA,4,FALSE)&" / "&VLOOKUP(E3,INVENTORYDATA,5,FALSE)&"GHz" -> RYZEN7 PRO 5875U / 2GHz | D7: ="Memory: " -> Memory: | E7: =VLOOKUP(E3,INVENTORYDATA,6,FALSE) -> 16G | G7: ="CPU/Speed: " -> CPU/Speed: | H7: =VLOOKUP(K3,INVENTORYDATA,4,FALSE)&" / "&VLOOKUP(K3,INVENTORYDATA,5,FALSE)&"GHz" -> RYZEN7 PRO 5875U / 2GHz | J7: ="Memory: " -> Memory: | K7: =VLOOKUP(K3,INVENTORYDATA,6,FALSE) -> 16G
A9: Key Function | C9: Pass | D9: Fail | E9: Comments | G9: Key Function | I9: Pass | J9: Fail | K9: Comments
A10: Hard Drive Removed | C10: =IF(ISBLANK(VLOOKUP(E3,INVENTORYDATA,13,FALSE)),"X","") ->  | E10: =IF(ISBLANK(VLOOKUP(E3,INVENTORYDATA,13,FALSE)),"",VLOOKUP(E3,INVENTORYDATA,13,FALSE)) -> 512G | G10: Hard Drive Removed | I10: =IF(ISBLANK(VLOOKUP(K3,INVENTORYDATA,13,FALSE)),"X","") ->  | K10: =IF(ISBLANK(VLOOKUP(K3,INVENTORYDATA,13,FALSE)),"",VLOOKUP(K3,INVENTORYDATA,13,FALSE)) -> 512G
A11: Install Memory | C11: X | G11: Install Memory | I11: X
A12: Power ON | C12: X | G12: Power ON | I12: X
A13: Record BIOS info | C13: X | G13: Record BIOS info | I13: X
A14: Check Optical Drive | C14: =IF((VLOOKUP(E3,INVENTORYDATA,7,FALSE))="YES","X","") ->  | D14: =IF((VLOOKUP(E3,INVENTORYDATA,7,FALSE))="NO","X","") -> X | G14: Check Optical Drive | I14: =IF((VLOOKUP(K3,INVENTORYDATA,7,FALSE))="YES","X","") ->  | J14: =IF((VLOOKUP(K3,INVENTORYDATA,7,FALSE))="NO","X","") -> X
A15: Power Off | C15: X | G15: Power Off | I15: X
A16: HDD Serial No. | C16: =IF(ISBLANK(VLOOKUP(E3,INVENTORYDATA,12,FALSE)),"",VLOOKUP(E3,INVENTORYDATA,12,FALSE)) -> sn9AN86841150B51Y | G16: HDD Serial No. | I16: =IF(ISBLANK(VLOOKUP(K3,INVENTORYDATA,12,FALSE)),"",VLOOKUP(K3,INVENTORYDATA,12,FALSE)) -> TW07YGY09DH0002J00XM
A18: Tested for key functions,R2/Ready for Resale | G18: Tested for key functions,R2/Ready for Resale
A19: BIOS Lock | B19: Caddy | C19: Optical | D19: WebCam | E19: Battery | G19: BIOS Lock | H19: Caddy | I19: Optical | J19: WebCam | K19: Battery
C20: =VLOOKUP(E3,INVENTORYDATA,7,FALSE) -> NO | D20: =VLOOKUP(E3,INVENTORYDATA,8,FALSE) -> YES | E20: =VLOOKUP(E3,INVENTORYDATA,9,FALSE) -> YES | I20: =VLOOKUP(K3,INVENTORY!$A$2:$N$100,7,FALSE) -> NO | J20: =VLOOKUP(K3,INVENTORY!$A$2:$N$100,8,FALSE) -> YES | K20: =VLOOKUP(K3,INVENTORY!$A$2:$N$100,9,FALSE) -> YES
A22: CPU Cosmetics Defects: | C22: ="Function Code: "&VLOOKUP(E3,INVENTORY!$A$2:$Q$100,14,FALSE) -> Function Code: F3 | G22: CPU Cosmetics Defects: | I22: ="Function Code: "&VLOOKUP(K3,INVENTORY!$A$2:$Q$100,14,FALSE) -> Function Code: F3
C24: ="Cosmetic Code: "&VLOOKUP(E3,INVENTORY!$A$2:$Q$100,15,FALSE) -> Cosmetic Code: C5 | I24: ="Cosmetic Code: "&VLOOKUP(K3,INVENTORY!$A$2:$Q$100,15,FALSE) -> Cosmetic Code: C5
A26: Casing | B26: Plugs/Ports | G26: Casing | H26: Plugs/Ports
A27: Pass | B27: Pass | G27: Pass | H27: Pass
A28: Fail | B28: Fail | D28: TRRC#:L.T.R. | G28: Fail | H28: Fail | J28: TRRC#:L.T.R.
A30: LAPTOP TESTING RECORD | G30: LAPTOP TESTING RECORD
D32: ITEM # | E32: =E3+2 -> 3 | J32: ITEM # | K32: =K3+2 -> 4
A33: Tester: | B33: RR | C33: Date: | D33: =NOW() -> 2025-12-15T11:00:59.760 | G33: Tester: | H33: RR | I33: Date: | J33: =NOW() -> 2025-12-15T11:00:59.760
A34: Type: | B34: LAPTOP | C34: SN: | D34: =VLOOKUP(E32,INVENTORYDATA,10,FALSE) -> PW058CLB | G34: Type: | H34: LAPTOP | I34: SN: | J34: =VLOOKUP(K32,INVENTORYDATA,10,FALSE) -> PW058CLE
A35: ="Make: " -> Make: | B35: =VLOOKUP(E32,INVENTORYDATA,2,FALSE) -> LENOVO | C35: ="Model: " -> Model: | D35: =VLOOKUP(E32,INVENTORYDATA,3,FALSE) -> THINKPAD L13 YOGA G3 | G35: ="Make: " -> Make: | H35: =VLOOKUP(K32,INVENTORYDATA,2,FALSE) -> LENOVO | I35: ="Model: " -> Model: | J35: =VLOOKUP(K32,INVENTORYDATA,3,FALSE) -> THINKPAD L13 YOGA G3
A36: ="CPU/Speed: " -> CPU/Speed: | B36: =VLOOKUP(E32,INVENTORYDATA,4,FALSE)&" / "&VLOOKUP(E32,INVENTORYDATA,5,FALSE)&"GHz" -> RYZEN7 PRO 5875U / 2GHz | D36: ="Memory: " -> Memory: | E36: =VLOOKUP(E32,INVENTORYDATA,6,FALSE) -> 16G | G36: ="CPU/Speed: " -> CPU/Speed: | H36: =VLOOKUP(K32,INVENTORYDATA,4,FALSE)&" / "&VLOOKUP(K32,INVENTORYDATA,5,FALSE)&"GHz" -> RYZEN7 PRO 5875U / 2GHz | J36: ="Memory: " -> Memory: | K36: =VLOOKUP(K32,INVENTORYDATA,6,FALSE) -> 16G
A38: Key Function | C38: Pass | D38: Fail | E38: Comments | G38: Key Function | I38: Pass | J38: Fail | K38: Comments
A39: Hard Drive Removed | C39: =IF(ISBLANK(VLOOKUP(E32,INVENTORYDATA,13,FALSE)),"X","") ->  | E39: =IF(ISBLANK(VLOOKUP(E32,INVENTORYDATA,13,FALSE)),"",VLOOKUP(E32,INVENTORYDATA,13,FALSE)) -> 512G | G39: Hard Drive Removed | I39: =IF(ISBLANK(VLOOKUP(K32,INVENTORYDATA,13,FALSE)),"X","") ->  | K39: =IF(ISBLANK(VLOOKUP(K32,INVENTORYDATA,13,FALSE)),"",VLOOKUP(K32,INVENTORYDATA,13,FALSE)) -> 512G
A40: Install Memory | C40: X | G40: Install Memory | I40: X
A41: Power ON | C41: X | G41: Power ON | I41: X
A42: Record BIOS info | C42: X | G42: Record BIOS info | I42: X
A43: Check Optical Drive | C43: =IF((VLOOKUP(E32,INVENTORYDATA,7,FALSE))="YES","X","") ->  | D43: =IF((VLOOKUP(E32,INVENTORYDATA,7,FALSE))="NO","X","") -> X | G43: Check Optical Drive | I43: =IF((VLOOKUP(K32,INVENTORYDATA,7,FALSE))="YES","X","") ->  | J43: =IF((VLOOKUP(K32,INVENTORYDATA,7,FALSE))="NO","X","") -> X
A44: Power Off | C44: X | G44: Power Off | I44: X
A45: HDD Serial No. | C45: =IF(ISBLANK(VLOOKUP(E32,INVENTORYDATA,12,FALSE)),"",VLOOKUP(E32,INVENTORYDATA,12,FALSE)) -> SN9AN90191030B65H | G45: HDD Serial No. | I45: =IF(ISBLANK(VLOOKUP(K32,INVENTORYDATA,12,FALSE)),"",VLOOKUP(K32,INVENTORYDATA,12,FALSE)) -> tw07YGY09DH0002O02CM
A47: Tested for key functions,R2/Ready for Resale | G47: Tested for key functions,R2/Ready for Resale
A48: BIOS Lock | B48: Caddy | C48: Optical | D48: WebCam | E48: Battery | G48: BIOS Lock | H48: Caddy | I48: Optical | J48: WebCam | K48: Battery
C49: =VLOOKUP(E32,INVENTORY!$A$2:$N$100,7,FALSE) -> NO | D49: =VLOOKUP(E32,INVENTORY!$A$2:$N$100,8,FALSE) -> YES | E49: =VLOOKUP(E32,INVENTORY!$A$2:$N$100,9,FALSE) -> YES | I49: =VLOOKUP(K32,INVENTORY!$A$2:$N$100,7,FALSE) -> NO | J49: =VLOOKUP(K32,INVENTORY!$A$2:$N$100,8,FALSE) -> YES | K49: =VLOOKUP(K32,INVENTORY!$A$2:$N$100,9,FALSE) -> YES
A51: CPU Cosmetics Defects: | C51: ="Function Code: "&VLOOKUP(E32,INVENTORY!$A$2:$Q$100,14,FALSE) -> Function Code: F3 | G51: CPU Cosmetics Defects: | I51: ="Function Code: "&VLOOKUP(K32,INVENTORY!$A$2:$Q$100,14,FALSE) -> Function Code: F3
C53: ="Cosmetic Code: "&VLOOKUP(E32,INVENTORY!$A$2:$Q$100,15,FALSE) -> Cosmetic Code: C5 | I53: ="Cosmetic Code: "&VLOOKUP(K32,INVENTORY!$A$2:$Q$100,15,FALSE) -> Cosmetic Code: C5
A55: Casing | B55: Plugs/Ports | G55: Casing | H55: Plugs/Ports
A56: Pass | B56: Pass | G56: Pass | H56: Pass
A57: Fail | B57: Fail | D57: TRRC#:L.T.R. | G57: Fail | H57: Fail | J57: TRRC#:L.T.R.
A59: LAPTOP TESTING RECORD | G59: LAPTOP TESTING RECORD
D61: ITEM # | E61: =E32+2 -> 5 | J61: ITEM # | K61: =K32+2 -> 6
A62: Tester: | B62: RR | C62: Date: | D62: =NOW() -> 2025-12-15T11:00:59.760 | G62: Tester: | H62: RR | I62: Date: | J62: =NOW() -> 2025-12-15T11:00:59.760
A63: Type: | B63: LAPTOP | C63: SN: | D63: =VLOOKUP(E61,INVENTORYDATA,10,FALSE) -> PW058CLS | G63: Type: | H63: LAPTOP | I63: SN: | J63: =VLOOKUP(K61,INVENTORYDATA,10,FALSE) -> PW05HGKX
A64: ="Make: " -> Make: | B64: =VLOOKUP(E61,INVENTORYDATA,2,FALSE) -> LENOVO | C64: ="Model: " -> Model: | D64: =VLOOKUP(E61,INVENTORYDATA,3,FALSE) -> THINKPAD L13 YOGA G3 | G64: ="Make: " -> Make: | H64: =VLOOKUP(K61,INVENTORYDATA,2,FALSE) -> LENOVO | I64: ="Model: " -> Model: | J64: =VLOOKUP(K61,INVENTORYDATA,3,FALSE) -> THINKPAD L13 YOGA G3
A65: ="CPU/Speed: " -> CPU/Speed: | B65: =VLOOKUP(E61,INVENTORYDATA,4,FALSE)&" / "&VLOOKUP(E61,INVENTORYDATA,5,FALSE)&"GHz" -> RYZEN7 PRO 5875U / 2GHz | D65: ="Memory: " -> Memory: | E65: =VLOOKUP(E61,INVENTORYDATA,6,FALSE) -> 16G | G65: ="CPU/Speed: " -> CPU/Speed: | H65: =VLOOKUP(K61,INVENTORYDATA,4,FALSE)&" / "&VLOOKUP(K61,INVENTORYDATA,5,FALSE)&"GHz" -> RYZEN7 PRO 5875U / 2GHz | J65: ="Memory: " -> Memory: | K65: =VLOOKUP(K61,INVENTORYDATA,6,FALSE) -> 16G
A67: Key Function | C67: Pass | D67: Fail | E67: Comments | G67: Key Function | I67: Pass | J67: Fail | K67: Comments
A68: Hard Drive Removed | C68: =IF(ISBLANK(VLOOKUP(E61,INVENTORYDATA,13,FALSE)),"X","") ->  | E68: =IF(ISBLANK(VLOOKUP(E61,INVENTORYDATA,13,FALSE)),"",VLOOKUP(E61,INVENTORYDATA,13,FALSE)) -> 512G | G68: Hard Drive Removed | I68: =IF(ISBLANK(VLOOKUP(K61,INVENTORYDATA,13,FALSE)),"X","") ->  | K68: =IF(ISBLANK(VLOOKUP(K61,INVENTORYDATA,13,FALSE)),"",VLOOKUP(K61,INVENTORYDATA,13,FALSE)) -> 512G
A69: Install Memory | C69: X | G69: Install Memory | I69: X
A70: Power ON | C70: X | G70: Power ON | I70: X
A71: Record BIOS info | C71: X | G71: Record BIOS info | I71: X
A72: Check Optical Drive | C72: =IF((VLOOKUP(E61,INVENTORYDATA,7,FALSE))="YES","X","") ->  | D72: =IF((VLOOKUP(E61,INVENTORYDATA,7,FALSE))="NO","X","") -> X | G72: Check Optical Drive | I72: =IF((VLOOKUP(K61,INVENTORYDATA,7,FALSE))="YES","X","") ->  | J72: =IF((VLOOKUP(K61,INVENTORYDATA,7,FALSE))="NO","X","") -> X
A73: Power Off | C73: X | G73: Power Off | I73: X
A74: HDD Serial No. | C74: =IF(ISBLANK(VLOOKUP(E61,INVENTORYDATA,12,FALSE)),"",VLOOKUP(E61,INVENTORYDATA,12,FALSE)) -> sn9AN82571020AU28 | G74: HDD Serial No. | I74: =IF(ISBLANK(VLOOKUP(K61,INVENTORYDATA,12,FALSE)),"",VLOOKUP(K61,INVENTORYDATA,12,FALSE)) -> z9FPC6EUPTML
A76: Tested for key functions,R2/Ready for Resale | G76: Tested for key functions,R2/Ready for Resale
A77: BIOS Lock | B77: Caddy | C77: Optical | D77: WebCam | E77: Battery | G77: BIOS Lock | H77: Caddy | I77: Optical | J77: WebCam | K77: Battery
C78: =VLOOKUP(E61,INVENTORY!$A$2:$N$100,7,FALSE) -> NO | D78: =VLOOKUP(E61,INVENTORY!$A$2:$N$100,8,FALSE) -> YES | E78: =VLOOKUP(E61,INVENTORY!$A$2:$N$100,9,FALSE) -> YES | I78: =VLOOKUP(K61,INVENTORY!$A$2:$N$100,7,FALSE) -> NO | J78: =VLOOKUP(K61,INVENTORY!$A$2:$N$100,8,FALSE) -> YES | K78: =VLOOKUP(K61,INVENTORY!$A$2:$N$100,9,FALSE) -> YES
A80: CPU Cosmetics Defects: | C80: ="Function Code: "&VLOOKUP(E61,INVENTORY!$A$2:$Q$100,14,FALSE) -> Function Code: F3 | G80: CPU Cosmetics Defects: | I80: ="Function Code: "&VLOOKUP(K61,INVENTORY!$A$2:$Q$100,14,FALSE) -> Function Code: F3
C82: ="Cosmetic Code: "&VLOOKUP(E61,INVENTORY!$A$2:$Q$100,15,FALSE) -> Cosmetic Code: C5 | I82: ="Cosmetic Code: "&VLOOKUP(K61,INVENTORY!$A$2:$Q$100,15,FALSE) -> Cosmetic Code: C5
A84: Casing | B84: Plugs/Ports | G84: Casing | H84: Plugs/Ports
A85: Pass | B85: Pass | G85: Pass | H85: Pass
A86: Fail | B86: Fail | D86: TRRC#:L.T.R. | G86: Fail | H86: Fail | J86: TRRC#:L.T.R.
A88: LAPTOP TESTING RECORD | G88: LAPTOP TESTING RECORD
D90: ITEM # | E90: =E61+2 -> 7 | J90: ITEM # | K90: =K61+2 -> 8
A91: Tester: | B91: RR | C91: Date: | D91: =NOW() -> 2025-12-15T11:00:59.760 | G91: Tester: | H91: RR | I91: Date: | J91: =NOW() -> 2025-12-15T11:00:59.760
A92: Type: | B92: LAPTOP | C92: SN: | D92: =VLOOKUP(E90,INVENTORYDATA,10,FALSE) -> PW05HHTW | G92: Type: | H92: LAPTOP | I92: SN: | J92: =VLOOKUP(K90,INVENTORYDATA,10,FALSE) -> PW05HHVS
A93: ="Make: " -> Make: | B93: =VLOOKUP(E90,INVENTORYDATA,2,FALSE) -> LENOVO | C93: ="Model: " -> Model: | D93: =VLOOKUP(E90,INVENTORYDATA,3,FALSE) -> THINKPAD L13 YOGA G3 | G93: ="Make: " -> Make: | H93: =VLOOKUP(K90,INVENTORYDATA,2,FALSE) -> LENOVO | I93: ="Model: " -> Model: | J93: =VLOOKUP(K90,INVENTORYDATA,3,FALSE) -> THINKPAD L13 YOGA G3
A94: ="CPU/Speed: " -> CPU/Speed: | B94: =VLOOKUP(E90,INVENTORYDATA,4,FALSE)&" / "&VLOOKUP(E90,INVENTORYDATA,5,FALSE)&"GHz" -> RYZEN7 PRO 5875U / 2GHz | D94: ="Memory: " -> Memory: | E94: =VLOOKUP(E90,INVENTORYDATA,6,FALSE) -> 16G | G94: ="CPU/Speed: " -> CPU/Speed: | H94: =VLOOKUP(K90,INVENTORYDATA,4,FALSE)&" / "&VLOOKUP(K90,INVENTORYDATA,5,FALSE)&"GHz" -> RYZEN7 PRO 5875U / 2GHz | J94: ="Memory: " -> Memory: | K94: =VLOOKUP(K90,INVENTORYDATA,6,FALSE) -> 16G
A96: Key Function | C96: Pass | D96: Fail | E96: Comments | G96: Key Function | I96: Pass | J96: Fail | K96: Comments
A97: Hard Drive Removed | C97: =IF(ISBLANK(VLOOKUP(E90,INVENTORYDATA,13,FALSE)),"X","") ->  | E97: =IF(ISBLANK(VLOOKUP(E90,INVENTORYDATA,13,FALSE)),"",VLOOKUP(E90,INVENTORYDATA,13,FALSE)) -> 512G | G97: Hard Drive Removed | I97: =IF(ISBLANK(VLOOKUP(K90,INVENTORYDATA,13,FALSE)),"X","") ->  | K97: =IF(ISBLANK(VLOOKUP(K90,INVENTORYDATA,13,FALSE)),"",VLOOKUP(K90,INVENTORYDATA,13,FALSE)) -> 512G
A98: Install Memory | C98: X | G98: Install Memory | I98: X
A99: Power ON | C99: X | G99: Power ON | I99: X
A100: Record BIOS info | C100: X | G100: Record BIOS info | I100: X
A101: Check Optical Drive | C101: =IF((VLOOKUP(E90,INVENTORYDATA,7,FALSE))="YES","X","") ->  | D101: =IF((VLOOKUP(E90,INVENTORYDATA,7,FALSE))="NO","X","") -> X | G101: Check Optical Drive | I101: =IF((VLOOKUP(K90,INVENTORYDATA,7,FALSE))="YES","X","") ->  | J101: =IF((VLOOKUP(K90,INVENTORYDATA,7,FALSE))="NO","X","") -> X
A102: Power Off | C102: X | G102: Power Off | I102: X
A103: HDD Serial No. | C103: =IF(ISBLANK(VLOOKUP(E90,INVENTORYDATA,12,FALSE)),"",VLOOKUP(E90,INVENTORYDATA,12,FALSE)) -> 605PE0DEPTML | G103: HDD Serial No. | I103: =IF(ISBLANK(VLOOKUP(K90,INVENTORYDATA,12,FALSE)),"",VLOOKUP(K90,INVENTORYDATA,12,FALSE)) -> tw07YGY09DH0002J00WY
A105: Tested for key functions,R2/Ready for Resale | G105: Tested for key functions,R2/Ready for Resale
A106: BIOS Lock | B106: Caddy | C106: Optical | D106: WebCam | E106: Battery | G106: BIOS Lock | H106: Caddy | I106: Optical | J106: WebCam | K106: Battery
C107: =VLOOKUP(E90,INVENTORY!$A$2:$N$100,7,FALSE) -> NO | D107: =VLOOKUP(E90,INVENTORY!$A$2:$N$100,8,FALSE) -> YES | E107: =VLOOKUP(E90,INVENTORY!$A$2:$N$100,9,FALSE) -> YES | I107: =VLOOKUP(K90,INVENTORY!$A$2:$N$100,7,FALSE) -> NO | J107: =VLOOKUP(K90,INVENTORY!$A$2:$N$100,8,FALSE) -> YES | K107: =VLOOKUP(K90,INVENTORY!$A$2:$N$100,9,FALSE) -> YES
A109: CPU Cosmetics Defects: | C109: ="Function Code: "&VLOOKUP(E90,INVENTORY!$A$2:$Q$100,14,FALSE) -> Function Code: F3 | G109: CPU Cosmetics Defects: | I109: ="Function Code: "&VLOOKUP(K90,INVENTORY!$A$2:$Q$100,14,FALSE) -> Function Code: F3
C111: ="Cosmetic Code: "&VLOOKUP(E90,INVENTORY!$A$2:$Q$100,15,FALSE) -> Cosmetic Code: C5 | I111: ="Cosmetic Code: "&VLOOKUP(K90,INVENTORY!$A$2:$Q$100,15,FALSE) -> Cosmetic Code: C5
A113: Casing | B113: Plugs/Ports | G113: Casing | H113: Plugs/Ports
A114: Pass | B114: Pass | G114: Pass | H114: Pass
A115: Fail | B115: Fail | D115: TRRC#:L.T.R. | G115: Fail | H115: Fail | J115: TRRC#:L.T.R.
A117: LAPTOP TESTING RECORD | G117: LAPTOP TESTING RECORD
D119: ITEM # | E119: =E90+2 -> 9 | J119: ITEM # | K119: =K90+2 -> 10
A120: Tester: | B120: RR | C120: Date: | D120: =NOW() -> 2025-12-15T11:00:59.760 | G120: Tester: | H120: RR | I120: Date: | J120: =NOW() -> 2025-12-15T11:00:59.760
A121: Type: | B121: LAPTOP | C121: SN: | D121: =VLOOKUP(E119,INVENTORYDATA,10,FALSE) -> PW05HYWA | G121: Type: | H121: LAPTOP | I121: SN: | J121: =VLOOKUP(K119,INVENTORYDATA,10,FALSE) -> PW05RRYA
A122: ="Make: " -> Make: | B122: =VLOOKUP(E119,INVENTORYDATA,2,FALSE) -> LENOVO | C122: ="Model: " -> Model: | D122: =VLOOKUP(E119,INVENTORYDATA,3,FALSE) -> THINKPAD L13 YOGA G3 | G122: ="Make: " -> Make: | H122: =VLOOKUP(K119,INVENTORYDATA,2,FALSE) -> LENOVO | I122: ="Model: " -> Model: | J122: =VLOOKUP(K119,INVENTORYDATA,3,FALSE) -> THINKPAD L13 YOGA G3
A123: ="CPU/Speed: " -> CPU/Speed: | B123: =VLOOKUP(E119,INVENTORYDATA,4,FALSE)&" / "&VLOOKUP(E119,INVENTORYDATA,5,FALSE)&"GHz" -> RYZEN7 PRO 5875U / 2GHz | D123: ="Memory: " -> Memory: | E123: =VLOOKUP(E119,INVENTORYDATA,6,FALSE) -> 16G | G123: ="CPU/Speed: " -> CPU/Speed: | H123: =VLOOKUP(K119,INVENTORYDATA,4,FALSE)&" / "&VLOOKUP(K119,INVENTORYDATA,5,FALSE)&"GHz" -> RYZEN7 PRO 5875U / 2GHz | J123: ="Memory: " -> Memory: | K123: =VLOOKUP(K119,INVENTORYDATA,6,FALSE) -> 16G
A125: Key Function | C125: Pass | D125: Fail | E125: Comments | G125: Key Function | I125: Pass | J125: Fail | K125: Comments
A126: Hard Drive Removed | C126: =IF(ISBLANK(VLOOKUP(E119,INVENTORYDATA,13,FALSE)),"X","") ->  | E126: =IF(ISBLANK(VLOOKUP(E119,INVENTORYDATA,13,FALSE)),"",VLOOKUP(E119,INVENTORYDATA,13,FALSE)) -> 512G | G126: Hard Drive Removed | I126: =IF(ISBLANK(VLOOKUP(K119,INVENTORYDATA,13,FALSE)),"X","") ->  | K126: =IF(ISBLANK(VLOOKUP(K119,INVENTORYDATA,13,FALSE)),"",VLOOKUP(K119,INVENTORYDATA,13,FALSE)) -> 512G
A127: Install Memory | C127: X | G127: Install Memory | I127: X
A128: Power ON | C128: X | G128: Power ON | I128: X
A129: Record BIOS info | C129: X | G129: Record BIOS info | I129: X
A130: Check Optical Drive | C130: =IF((VLOOKUP(E119,INVENTORYDATA,7,FALSE))="YES","X","") ->  | D130: =IF((VLOOKUP(E119,INVENTORYDATA,7,FALSE))="NO","X","") -> X | G130: Check Optical Drive | I130: =IF((VLOOKUP(K119,INVENTORYDATA,7,FALSE))="YES","X","") ->  | J130: =IF((VLOOKUP(K119,INVENTORYDATA,7,FALSE))="NO","X","") -> X
A131: Power Off | C131: X | G131: Power Off | I131: X
A132: HDD Serial No. | C132: =IF(ISBLANK(VLOOKUP(E119,INVENTORYDATA,12,FALSE)),"",VLOOKUP(E119,INVENTORYDATA,12,FALSE)) -> SN9BN44181010B74R | G132: HDD Serial No. | I132: =IF(ISBLANK(VLOOKUP(K119,INVENTORYDATA,12,FALSE)),"",VLOOKUP(K119,INVENTORYDATA,12,FALSE)) -> sn9AN82631130B445
A134: Tested for key functions,R2/Ready for Resale | G134: Tested for key functions,R2/Ready for Resale
A135: BIOS Lock | B135: Caddy | C135: Optical | D135: WebCam | E135: Battery | G135: BIOS Lock | H135: Caddy | I135: Optical | J135: WebCam | K135: Battery
C136: =VLOOKUP(E119,INVENTORY!$A$2:$N$100,7,FALSE) -> NO | D136: =VLOOKUP(E119,INVENTORY!$A$2:$N$100,8,FALSE) -> YES | E136: =VLOOKUP(E119,INVENTORY!$A$2:$N$100,9,FALSE) -> YES | I136: =VLOOKUP(K119,INVENTORY!$A$2:$N$100,7,FALSE) -> NO | J136: =VLOOKUP(K119,INVENTORY!$A$2:$N$100,8,FALSE) -> YES | K136: =VLOOKUP(K119,INVENTORY!$A$2:$N$100,9,FALSE) -> YES
A138: CPU Cosmetics Defects: | C138: ="Function Code: "&VLOOKUP(E119,INVENTORY!$A$2:$Q$100,14,FALSE) -> Function Code: F3 | G138: CPU Cosmetics Defects: | I138: ="Function Code: "&VLOOKUP(K119,INVENTORY!$A$2:$Q$100,14,FALSE) -> Function Code: F3
C140: ="Cosmetic Code: "&VLOOKUP(E119,INVENTORY!$A$2:$Q$100,15,FALSE) -> Cosmetic Code: C5 | I140: ="Cosmetic Code: "&VLOOKUP(K119,INVENTORY!$A$2:$Q$100,15,FALSE) -> Cosmetic Code: C5
A142: Casing | B142: Plugs/Ports | G142: Casing | H142: Plugs/Ports
A143: Pass | B143: Pass | G143: Pass | H143: Pass
A144: Fail | B144: Fail | D144: TRRC#:L.T.R. | G144: Fail | H144: Fail | J144: TRRC#:L.T.R.
A146: LAPTOP TESTING RECORD | G146: LAPTOP TESTING RECORD
D148: ITEM # | E148: =E119+2 -> 11 | J148: ITEM # | K148: =K119+2 -> 12
A149: Tester: | B149: RR | C149: Date: | D149: =NOW() -> 2025-12-15T11:00:59.760 | G149: Tester: | H149: RR | I149: Date: | J149: =NOW() -> 2025-12-15T11:00:59.760
A150: Type: | B150: LAPTOP | C150: SN: | D150: =VLOOKUP(E148,INVENTORYDATA,10,FALSE) -> PW05RTH4 | G150: Type: | H150: LAPTOP | I150: SN: | J150: =VLOOKUP(K148,INVENTORYDATA,10,FALSE) -> PW05SGT5
A151: ="Make: " -> Make: | B151: =VLOOKUP(E148,INVENTORYDATA,2,FALSE) -> LENOVO | C151: ="Model: " -> Model: | D151: =VLOOKUP(E148,INVENTORYDATA,3,FALSE) -> THINKPAD L13 YOGA G3 | G151: ="Make: " -> Make: | H151: =VLOOKUP(K148,INVENTORYDATA,2,FALSE) -> LENOVO | I151: ="Model: " -> Model: | J151: =VLOOKUP(K148,INVENTORYDATA,3,FALSE) -> THINKPAD L13 YOGA G3
A152: ="CPU/Speed: " -> CPU/Speed: | B152: =VLOOKUP(E148,INVENTORYDATA,4,FALSE)&" / "&VLOOKUP(E148,INVENTORYDATA,5,FALSE)&"GHz" -> RYZEN7 PRO 5875U / 2GHz | D152: ="Memory: " -> Memory: | E152: =VLOOKUP(E148,INVENTORYDATA,6,FALSE) -> 16G | G152: ="CPU/Speed: " -> CPU/Speed: | H152: =VLOOKUP(K148,INVENTORYDATA,4,FALSE)&" / "&VLOOKUP(K148,INVENTORYDATA,5,FALSE)&"GHz" -> RYZEN7 PRO 5875U / 2GHz | J152: ="Memory: " -> Memory: | K152: =VLOOKUP(K148,INVENTORYDATA,6,FALSE) -> 16G
A154: Key Function | C154: Pass | D154: Fail | E154: Comments | G154: Key Function | I154: Pass | J154: Fail | K154: Comments
A155: Hard Drive Removed | C155: =IF(ISBLANK(VLOOKUP(E148,INVENTORYDATA,13,FALSE)),"X","") ->  | E155: =IF(ISBLANK(VLOOKUP(E148,INVENTORYDATA,13,FALSE)),"",VLOOKUP(E148,INVENTORYDATA,13,FALSE)) -> 512G | G155: Hard Drive Removed | I155: =IF(ISBLANK(VLOOKUP(K148,INVENTORYDATA,13,FALSE)),"X","") ->  | K155: =IF(ISBLANK(VLOOKUP(K148,INVENTORYDATA,13,FALSE)),"",VLOOKUP(K148,INVENTORYDATA,13,FALSE)) -> 512G
A156: Install Memory | C156: X | G156: Install Memory | I156: X
A157: Power ON | C157: X | G157: Power ON | I157: X
A158: Record BIOS info | C158: X | G158: Record BIOS info | I158: X
A159: Check Optical Drive | C159: =IF((VLOOKUP(E148,INVENTORYDATA,7,FALSE))="YES","X","") ->  | D159: =IF((VLOOKUP(E148,INVENTORYDATA,7,FALSE))="NO","X","") -> X | G159: Check Optical Drive | I159: =IF((VLOOKUP(K148,INVENTORYDATA,7,FALSE))="YES","X","") ->  | J159: =IF((VLOOKUP(K148,INVENTORYDATA,7,FALSE))="NO","X","") -> X
A160: Power Off | C160: X | G160: Power Off | I160: X
A161: HDD Serial No. | C161: =IF(ISBLANK(VLOOKUP(E148,INVENTORYDATA,12,FALSE)),"",VLOOKUP(E148,INVENTORYDATA,12,FALSE)) -> TW07YGY09DH0002O02EG | G161: HDD Serial No. | I161: =IF(ISBLANK(VLOOKUP(K148,INVENTORYDATA,12,FALSE)),"",VLOOKUP(K148,INVENTORYDATA,12,FALSE)) -> 606PG96IPTML
A163: Tested for key functions,R2/Ready for Resale | G163: Tested for key functions,R2/Ready for Resale
A164: BIOS Lock | B164: Caddy | C164: Optical | D164: WebCam | E164: Battery | G164: BIOS Lock | H164: Caddy | I164: Optical | J164: WebCam | K164: Battery
C165: =VLOOKUP(E148,INVENTORY!$A$2:$N$100,7,FALSE) -> NO | D165: =VLOOKUP(E148,INVENTORY!$A$2:$N$100,8,FALSE) -> YES | E165: =VLOOKUP(E148,INVENTORY!$A$2:$N$100,9,FALSE) -> YES | I165: =VLOOKUP(K148,INVENTORY!$A$2:$N$100,7,FALSE) -> NO | J165: =VLOOKUP(K148,INVENTORY!$A$2:$N$100,8,FALSE) -> YES | K165: =VLOOKUP(K148,INVENTORY!$A$2:$N$100,9,FALSE) -> YES
A167: CPU Cosmetics Defects: | C167: ="Function Code: "&VLOOKUP(E148,INVENTORY!$A$2:$Q$100,14,FALSE) -> Function Code: F3 | G167: CPU Cosmetics Defects: | I167: ="Function Code: "&VLOOKUP(K148,INVENTORY!$A$2:$Q$100,14,FALSE) -> Function Code: F3
C169: ="Cosmetic Code: "&VLOOKUP(E148,INVENTORY!$A$2:$Q$100,15,FALSE) -> Cosmetic Code: C5 | I169: ="Cosmetic Code: "&VLOOKUP(K148,INVENTORY!$A$2:$Q$100,15,FALSE) -> Cosmetic Code: C5
A171: Casing | B171: Plugs/Ports | G171: Casing | H171: Plugs/Ports
A172: Pass | B172: Pass | G172: Pass | H172: Pass
A173: Fail | B173: Fail | D173: TRRC#:L.T.R. | G173: Fail | H173: Fail | J173: TRRC#:L.T.R.
A175: LAPTOP TESTING RECORD | G175: LAPTOP TESTING RECORD
D177: ITEM # | E177: =E148+2 -> 13 | J177: ITEM # | K177: =K148+2 -> 14
A178: Tester: | B178: RR | C178: Date: | D178: =NOW() -> 2025-12-15T11:00:59.760 | G178: Tester: | H178: RR | I178: Date: | J178: =NOW() -> 2025-12-15T11:00:59.760
A179: Type: | B179: LAPTOP | C179: SN: | D179: =VLOOKUP(E177,INVENTORYDATA,10,FALSE) -> PW05SJHK | G179: Type: | H179: LAPTOP | I179: SN: | J179: =VLOOKUP(K177,INVENTORYDATA,10,FALSE) -> PW05SJHS
A180: ="Make: " -> Make: | B180: =VLOOKUP(E177,INVENTORYDATA,2,FALSE) -> LENOVO | C180: ="Model: " -> Model: | D180: =VLOOKUP(E177,INVENTORYDATA,3,FALSE) -> THINKPAD L13 YOGA G3 | G180: ="Make: " -> Make: | H180: =VLOOKUP(K177,INVENTORYDATA,2,FALSE) -> LENOVO | I180: ="Model: " -> Model: | J180: =VLOOKUP(K177,INVENTORYDATA,3,FALSE) -> THINKPAD L13 YOGA G3
A181: ="CPU/Speed: " -> CPU/Speed: | B181: =VLOOKUP(E177,INVENTORYDATA,4,FALSE)&" / "&VLOOKUP(E177,INVENTORYDATA,5,FALSE)&"GHz" -> RYZEN7 PRO 5875U / 2GHz | D181: ="Memory: " -> Memory: | E181: =VLOOKUP(E177,INVENTORYDATA,6,FALSE) -> 16G | G181: ="CPU/Speed: " -> CPU/Speed: | H181: =VLOOKUP(K177,INVENTORYDATA,4,FALSE)&" / "&VLOOKUP(K177,INVENTORYDATA,5,FALSE)&"GHz" -> RYZEN7 PRO 5875U / 2GHz | J181: ="Memory: " -> Memory: | K181: =VLOOKUP(K177,INVENTORYDATA,6,FALSE) -> 16G
A183: Key Function | C183: Pass | D183: Fail | E183: Comments | G183: Key Function | I183: Pass | J183: Fail | K183: Comments
A184: Hard Drive Removed | C184: =IF(ISBLANK(VLOOKUP(E177,INVENTORYDATA,13,FALSE)),"X","") ->  | E184: =IF(ISBLANK(VLOOKUP(E177,INVENTORYDATA,13,FALSE)),"",VLOOKUP(E177,INVENTORYDATA,13,FALSE)) -> 512G | G184: Hard Drive Removed | I184: =IF(ISBLANK(VLOOKUP(K177,INVENTORYDATA,13,FALSE)),"X","") ->  | K184: =IF(ISBLANK(VLOOKUP(K177,INVENTORYDATA,13,FALSE)),"",VLOOKUP(K177,INVENTORYDATA,13,FALSE)) -> 512G
A185: Install Memory | C185: X | G185: Install Memory | I185: X
A186: Power ON | C186: X | G186: Power ON | I186: X
A187: Record BIOS info | C187: X | G187: Record BIOS info | I187: X
A188: Check Optical Drive | C188: =IF((VLOOKUP(E177,INVENTORYDATA,7,FALSE))="YES","X","") ->  | D188: =IF((VLOOKUP(E177,INVENTORYDATA,7,FALSE))="NO","X","") -> X | G188: Check Optical Drive | I188: =IF((VLOOKUP(K177,INVENTORYDATA,7,FALSE))="YES","X","") ->  | J188: =IF((VLOOKUP(K177,INVENTORYDATA,7,FALSE))="NO","X","") -> X
A189: Power Off | C189: X | G189: Power Off | I189: X
A190: HDD Serial No. | C190: =IF(ISBLANK(VLOOKUP(E177,INVENTORYDATA,12,FALSE)),"",VLOOKUP(E177,INVENTORYDATA,12,FALSE)) -> sd01N670910301U0X | G190: HDD Serial No. | I190: =IF(ISBLANK(VLOOKUP(K177,INVENTORYDATA,12,FALSE)),"",VLOOKUP(K177,INVENTORYDATA,12,FALSE)) -> sn9AN79251110AU6C
A192: Tested for key functions,R2/Ready for Resale | G192: Tested for key functions,R2/Ready for Resale
A193: BIOS Lock | B193: Caddy | C193: Optical | D193: WebCam | E193: Battery | G193: BIOS Lock | H193: Caddy | I193: Optical | J193: WebCam | K193: Battery
C194: =VLOOKUP(E177,INVENTORY!$A$2:$N$100,7,FALSE) -> NO | D194: =VLOOKUP(E177,INVENTORY!$A$2:$N$100,8,FALSE) -> YES | E194: =VLOOKUP(E177,INVENTORY!$A$2:$N$100,9,FALSE) -> YES | I194: =VLOOKUP(K177,INVENTORY!$A$2:$N$100,7,FALSE) -> NO | J194: =VLOOKUP(K177,INVENTORY!$A$2:$N$100,8,FALSE) -> YES | K194: =VLOOKUP(K177,INVENTORY!$A$2:$N$100,9,FALSE) -> YES
A196: CPU Cosmetics Defects: | C196: ="Function Code: "&VLOOKUP(E177,INVENTORY!$A$2:$Q$100,14,FALSE) -> Function Code: F3 | G196: CPU Cosmetics Defects: | I196: ="Function Code: "&VLOOKUP(K177,INVENTORY!$A$2:$Q$100,14,FALSE) -> Function Code: F3
C198: ="Cosmetic Code: "&VLOOKUP(E177,INVENTORY!$A$2:$Q$100,15,FALSE) -> Cosmetic Code: C5 | I198: ="Cosmetic Code: "&VLOOKUP(K177,INVENTORY!$A$2:$Q$100,15,FALSE) -> Cosmetic Code: C5
A200: Casing | B200: Plugs/Ports | G200: Casing | H200: Plugs/Ports
A201: Pass | B201: Pass | G201: Pass | H201: Pass
A202: Fail | B202: Fail | D202: TRRC#:L.T.R. | G202: Fail | H202: Fail | J202: TRRC#:L.T.R.
A204: LAPTOP TESTING RECORD | G204: LAPTOP TESTING RECORD
D206: ITEM # | E206: =E177+2 -> 15 | J206: ITEM # | K206: =K177+2 -> 16
A207: Tester: | B207: RR | C207: Date: | D207: =NOW() -> 2025-12-15T11:00:59.760 | G207: Tester: | H207: RR | I207: Date: | J207: =NOW() -> 2025-12-15T11:00:59.760
A208: Type: | B208: LAPTOP | C208: SN: | D208: =VLOOKUP(E206,INVENTORYDATA,10,FALSE) -> PW05TP9N | G208: Type: | H208: LAPTOP | I208: SN: | J208: =VLOOKUP(K206,INVENTORYDATA,10,FALSE) -> 
A209: ="Make: " -> Make: | B209: =VLOOKUP(E206,INVENTORYDATA,2,FALSE) -> LENOVO | C209: ="Model: " -> Model: | D209: =VLOOKUP(E206,INVENTORYDATA,3,FALSE) -> THINKPAD L13 YOGA G3 | G209: ="Make: " -> Make: | H209: =VLOOKUP(K206,INVENTORYDATA,2,FALSE) ->  | I209: ="Model: " -> Model: | J209: =VLOOKUP(K206,INVENTORYDATA,3,FALSE) -> 
A210: ="CPU/Speed: " -> CPU/Speed: | B210: =VLOOKUP(E206,INVENTORYDATA,4,FALSE)&" / "&VLOOKUP(E206,INVENTORYDATA,5,FALSE)&"GHz" -> RYZEN7 PRO 5875U / 2GHz | D210: ="Memory: " -> Memory: | E210: =VLOOKUP(E206,INVENTORYDATA,6,FALSE) -> 16G | G210: ="CPU/Speed: " -> CPU/Speed: | H210: =VLOOKUP(K206,INVENTORYDATA,4,FALSE)&" / "&VLOOKUP(K206,INVENTORYDATA,5,FALSE)&"GHz" ->  | J210: ="Memory: " -> Memory: | K210: =VLOOKUP(K206,INVENTORYDATA,6,FALSE) -> 
A212: Key Function | C212: Pass | D212: Fail | E212: Comments | G212: Key Function | I212: Pass | J212: Fail | K212: Comments
A213: Hard Drive Removed | C213: =IF(ISBLANK(VLOOKUP(E206,INVENTORYDATA,13,FALSE)),"X","") ->  | E213: =IF(ISBLANK(VLOOKUP(E206,INVENTORYDATA,13,FALSE)),"",VLOOKUP(E206,INVENTORYDATA,13,FALSE)) -> 512G | G213: Hard Drive Removed | I213: =IF(ISBLANK(VLOOKUP(K206,INVENTORYDATA,13,FALSE)),"X","") ->  | K213: =IF(ISBLANK(VLOOKUP(K206,INVENTORYDATA,13,FALSE)),"",VLOOKUP(K206,INVENTORYDATA,13,FALSE)) -> 
A214: Install Memory | C214: X | G214: Install Memory | I214: X
A215: Power ON | C215: X | G215: Power ON | I215: X
A216: Record BIOS info | C216: X | G216: Record BIOS info | I216: X
A217: Check Optical Drive | C217: =IF((VLOOKUP(E206,INVENTORYDATA,7,FALSE))="YES","X","") ->  | D217: =IF((VLOOKUP(E206,INVENTORYDATA,7,FALSE))="NO","X","") -> X | G217: Check Optical Drive | I217: =IF((VLOOKUP(K206,INVENTORYDATA,7,FALSE))="YES","X","") ->  | J217: =IF((VLOOKUP(K206,INVENTORYDATA,7,FALSE))="NO","X","") -> 
A218: Power Off | C218: X | G218: Power Off | I218: X
A219: HDD Serial No. | C219: =IF(ISBLANK(VLOOKUP(E206,INVENTORYDATA,12,FALSE)),"",VLOOKUP(E206,INVENTORYDATA,12,FALSE)) -> SN9AN74551100AU06 | G219: HDD Serial No. | I219: =IF(ISBLANK(VLOOKUP(K206,INVENTORYDATA,12,FALSE)),"",VLOOKUP(K206,INVENTORYDATA,12,FALSE)) -> 
A221: Tested for key functions,R2/Ready for Resale | G221: Tested for key functions,R2/Ready for Resale
A222: BIOS Lock | B222: Caddy | C222: Optical | D222: WebCam | E222: Battery | G222: BIOS Lock | H222: Caddy | I222: Optical | J222: WebCam | K222: Battery
C223: =VLOOKUP(E206,INVENTORY!$A$2:$N$100,7,FALSE) -> NO | D223: =VLOOKUP(E206,INVENTORY!$A$2:$N$100,8,FALSE) -> YES | E223: =VLOOKUP(E206,INVENTORY!$A$2:$N$100,9,FALSE) -> YES | I223: =VLOOKUP(K206,INVENTORY!$A$2:$N$100,7,FALSE) ->  | J223: =VLOOKUP(K206,INVENTORY!$A$2:$N$100,8,FALSE) ->  | K223: =VLOOKUP(K206,INVENTORY!$A$2:$N$100,9,FALSE) -> 
A225: CPU Cosmetics Defects: | C225: ="Function Code: "&VLOOKUP(E206,INVENTORY!$A$2:$Q$100,14,FALSE) -> Function Code: F3 | G225: CPU Cosmetics Defects: | I225: ="Function Code: "&VLOOKUP(K206,INVENTORY!$A$2:$Q$100,14,FALSE) -> 
C227: ="Cosmetic Code: "&VLOOKUP(E206,INVENTORY!$A$2:$Q$100,15,FALSE) -> Cosmetic Code: C5 | I227: ="Cosmetic Code: "&VLOOKUP(K206,INVENTORY!$A$2:$Q$100,15,FALSE) -> 
A229: Casing | B229: Plugs/Ports | G229: Casing | H229: Plugs/Ports
A230: Pass | B230: Pass | G230: Pass | H230: Pass
A231: Fail | B231: Fail | D231: TRRC#:L.T.R. | G231: Fail | H231: Fail | J231: TRRC#:L.T.R.
A233: LAPTOP TESTING RECORD | G233: LAPTOP TESTING RECORD
D235: ITEM # | E235: =E206+2 -> 17 | J235: ITEM # | K235: =K206+2 -> 18
A236: Tester: | B236: RR | C236: Date: | D236: =NOW() -> 2025-12-15T11:00:59.760 | G236: Tester: | H236: RR | I236: Date: | J236: =NOW() -> 2025-12-15T11:00:59.760
A237: Type: | B237: LAPTOP | C237: SN: | D237: =VLOOKUP(E235,INVENTORYDATA,10,FALSE) ->  | G237: Type: | H237: LAPTOP | I237: SN: | J237: =VLOOKUP(K235,INVENTORYDATA,10,FALSE) -> 
A238: ="Make: " -> Make: | B238: =VLOOKUP(E235,INVENTORYDATA,2,FALSE) ->  | C238: ="Model: " -> Model: | D238: =VLOOKUP(E235,INVENTORYDATA,3,FALSE) ->  | G238: ="Make: " -> Make: | H238: =VLOOKUP(K235,INVENTORYDATA,2,FALSE) ->  | I238: ="Model: " -> Model: | J238: =VLOOKUP(K235,INVENTORYDATA,3,FALSE) -> 
A239: ="CPU/Speed: " -> CPU/Speed: | B239: =VLOOKUP(E235,INVENTORYDATA,4,FALSE)&" / "&VLOOKUP(E235,INVENTORYDATA,5,FALSE)&"GHz" ->  | D239: ="Memory: " -> Memory: | E239: =VLOOKUP(E235,INVENTORYDATA,6,FALSE) ->  | G239: ="CPU/Speed: " -> CPU/Speed: | H239: =VLOOKUP(K235,INVENTORYDATA,4,FALSE)&" / "&VLOOKUP(K235,INVENTORYDATA,5,FALSE)&"GHz" ->  | J239: ="Memory: " -> Memory: | K239: =VLOOKUP(K235,INVENTORYDATA,6,FALSE) -> 
A241: Key Function | C241: Pass | D241: Fail | E241: Comments | G241: Key Function | I241: Pass | J241: Fail | K241: Comments
A242: Hard Drive Removed | C242: =IF(ISBLANK(VLOOKUP(E235,INVENTORYDATA,13,FALSE)),"X","") ->  | E242: =IF(ISBLANK(VLOOKUP(E235,INVENTORYDATA,13,FALSE)),"",VLOOKUP(E235,INVENTORYDATA,13,FALSE)) ->  | G242: Hard Drive Removed | I242: =IF(ISBLANK(VLOOKUP(K235,INVENTORYDATA,13,FALSE)),"X","") ->  | K242: =IF(ISBLANK(VLOOKUP(K235,INVENTORYDATA,13,FALSE)),"",VLOOKUP(K235,INVENTORYDATA,13,FALSE)) -> 
A243: Install Memory | C243: X | G243: Install Memory | I243: X
A244: Power ON | C244: X | G244: Power ON | I244: X
A245: Record BIOS info | C245: X | G245: Record BIOS info | I245: X
A246: Check Optical Drive | C246: =IF((VLOOKUP(E235,INVENTORYDATA,7,FALSE))="YES","X","") ->  | D246: =IF((VLOOKUP(E235,INVENTORYDATA,7,FALSE))="NO","X","") ->  | G246: Check Optical Drive | I246: =IF((VLOOKUP(K235,INVENTORYDATA,7,FALSE))="YES","X","") ->  | J246: =IF((VLOOKUP(K235,INVENTORYDATA,7,FALSE))="NO","X","") -> 
A247: Power Off | C247: X | G247: Power Off | I247: X
A248: HDD Serial No. | C248: =IF(ISBLANK(VLOOKUP(E235,INVENTORYDATA,12,FALSE)),"",VLOOKUP(E235,INVENTORYDATA,12,FALSE)) ->  | G248: HDD Serial No. | I248: =IF(ISBLANK(VLOOKUP(K235,INVENTORYDATA,12,FALSE)),"",VLOOKUP(K235,INVENTORYDATA,12,FALSE)) -> 
A250: Tested for key functions,R2/Ready for Resale | G250: Tested for key functions,R2/Ready for Resale
A251: BIOS Lock | B251: Caddy | C251: Optical | D251: WebCam | E251: Battery | G251: BIOS Lock | H251: Caddy | I251: Optical | J251: WebCam | K251: Battery
C252: =VLOOKUP(E235,INVENTORY!$A$2:$N$100,7,FALSE) ->  | D252: =VLOOKUP(E235,INVENTORY!$A$2:$N$100,8,FALSE) ->  | E252: =VLOOKUP(E235,INVENTORY!$A$2:$N$100,9,FALSE) ->  | I252: =VLOOKUP(K235,INVENTORY!$A$2:$N$100,7,FALSE) ->  | J252: =VLOOKUP(K235,INVENTORY!$A$2:$N$100,8,FALSE) ->  | K252: =VLOOKUP(K235,INVENTORY!$A$2:$N$100,9,FALSE) -> 
A254: CPU Cosmetics Defects: | C254: ="Function Code: "&VLOOKUP(E235,INVENTORY!$A$2:$Q$100,14,FALSE) ->  | G254: CPU Cosmetics Defects: | I254: ="Function Code: "&VLOOKUP(K235,INVENTORY!$A$2:$Q$100,14,FALSE) -> 
C256: ="Cosmetic Code: "&VLOOKUP(E235,INVENTORY!$A$2:$Q$100,15,FALSE) ->  | I256: ="Cosmetic Code: "&VLOOKUP(K235,INVENTORY!$A$2:$Q$100,15,FALSE) -> 
A258: Casing | B258: Plugs/Ports | G258: Casing | H258: Plugs/Ports
A259: Pass | B259: Pass | G259: Pass | H259: Pass
A260: Fail | B260: Fail | D260: TRRC#:L.T.R. | G260: Fail | H260: Fail | J260: TRRC#:L.T.R.
A262: LAPTOP TESTING RECORD | G262: LAPTOP TESTING RECORD
D264: ITEM # | E264: =E235+2 -> 19 | J264: ITEM # | K264: =K235+2 -> 20
... 2000 more rows

Sheet TAGS-BLANK
A1: LAPTOP TESTING RECORD | G1: LAPTOP TESTING RECORD
D3: ITEM # | J3: ITEM #
A4: Tester: | B4: RR | C4: Date: | G4: Tester: | H4: RR | I4: Date:
A5: Type: | C5: SN: | G5: Type: | I5: SN:
A6: ="Make: " -> Make: | C6: ="Model: " -> Model: | G6: ="Make: " -> Make: | I6: ="Model: " -> Model:
A7: ="CPU/Speed: " -> CPU/Speed: | D7: ="Memory: " -> Memory: | G7: ="CPU/Speed: " -> CPU/Speed: | J7: ="Memory: " -> Memory:
A9: Key Function | C9: Pass | D9: Fail | E9: Comments | G9: Key Function | I9: Pass | J9: Fail | K9: Comments
A10: Hard Drive Removed | C10: X | G10: Hard Drive Removed | I10: X
A11: Install Memory | C11: X | G11: Install Memory | I11: X
A12: Power ON | C12: X | G12: Power ON | I12: X
A13: Record BIOS info | C13: X | G13: Record BIOS info | I13: X
A14: Check Optical Drive | C14: X | G14: Check Optical Drive | I14: X
A15: Power Off | C15: X | G15: Power Off | I15: X
A18: Tested for key functions,R2/Ready for Resale | G18: Tested for key functions,R2/Ready for Resale
A19: BIOS Lock | B19: Caddy | C19: Optical | D19: WedCam | E19: Battery | G19: BIOS Lock | H19: Caddy | I19: Optical | J19: WedCam | K19: Battery
A22: CPU Cosmetics Defects: | C22: Function Code: | G22: CPU Cosmetics Defects: | I22: Function Code:
C24: Cosmetic Code: | I24: Cosmetic Code:
A26: Casing | B26: Plugs/Ports | G26: Casing | H26: Plugs/Ports
A27: Pass | B27: Pass | G27: Pass | H27: Pass
A28: Fail | B28: Fail | D28: QP-TRRC-0019-01 | G28: Fail | H28: Fail | J28: QP-TRRC-0019-01
A30: LAPTOP TESTING RECORD | G30: LAPTOP TESTING RECORD
D32: ITEM # | J32: ITEM #
A33: Tester: | B33: RR | C33: Date: | G33: Tester: | H33: RR | I33: Date:
A34: Type: | C34: SN: | G34: Type: | I34: SN:
A35: ="Make: " -> Make: | C35: ="Model: " -> Model: | G35: ="Make: " -> Make: | I35: ="Model: " -> Model:
A36: ="CPU/Speed: " -> CPU/Speed: | D36: ="Memory: " -> Memory: | G36: ="CPU/Speed: " -> CPU/Speed: | J36: ="Memory: " -> Memory:
A38: Key Function | C38: Pass | D38: Fail | E38: Comments | G38: Key Function | I38: Pass | J38: Fail | K38: Comments
A39: Hard Drive Removed | C39: X | G39: Hard Drive Removed | I39: X
A40: Install Memory | C40: X | G40: Install Memory | I40: X
A41: Power ON | C41: X | G41: Power ON | I41: X
A42: Record BIOS info | C42: X | G42: Record BIOS info | I42: X
A43: Check Optical Drive | C43: X | G43: Check Optical Drive | I43: X
A44: Power Off | C44: X | G44: Power Off | I44: X
A47: Tested for key functions,R2/Ready for Resale | G47: Tested for key functions,R2/Ready for Resale
A48: BIOS Lock | B48: Caddy | C48: Optical | D48: WedCam | E48: Battery | G48: BIOS Lock | H48: Caddy | I48: Optical | J48: WedCam | K48: Battery
A51: CPU Cosmetics Defects: | C51: Function Code: | G51: CPU Cosmetics Defects: | I51: Function Code:
C53: Cosmetic Code: | I53: Cosmetic Code:
A55: Casing | B55: Plugs/Ports | G55: Casing | H55: Plugs/Ports
A56: Pass | B56: Pass | G56: Pass | H56: Pass
A57: Fail | B57: Fail | D57: QP-TRRC-0019-01 | G57: Fail | H57: Fail | J57: QP-TRRC-0019-01

Sheet Data-PULLDOWNS
A1: First Tag # | B1: 1
A2: Number of PCs | B2: =MAX(INVENTORY!A2:A329) -> 15
A3: Number of Pages | B3: =ROUNDUP(B2/4,0) -> 4
A5: To print a specific range of tags, enter the first tag number in "First Tag #" and the number of
A6: pages required (# of tags /4) in "Number of Pages"
A7: CAUTION: This will overwrite the automatic calculation!
A11: MAKE | B11: MODEL | C11: TYPE PROC. | D11: MEMORY | E11: OPTICAL | F11: WEBCAM | G11: BATTERY | H11: FUNC. CODE | I11: COSMETIC CODE | J11: PRE-SANITIZATION | K11: NON-DATA | L11: HDD SIZE | M11: TYPE
A12: DELL | B12: LATITUDE | C12: I3- | D12: 0G | E12: YES | F12: YES | G12: YES | H12: F1 | I12: C2 | J12: ENCD | K12: ND | L12: 256G | M12: NVMe M.2 - 22MM - 30MM
A13: HP | B13: ELITEBOOK | C13: I5- | D13: 2G | E13: NO | F13: NO | G13: NO | H13: F2 | I13: C3 | L13: 512G | M13: NVMe M.2 - 22MM - 42MM
A14: LENOVO | B14: PROBOOK | C14: I7- | D14: 4G | E14: N/A | F14: N/A | G14: N/A | H14: F3 | I14: C4 | L14: 1TB | M14: NVMe M.2 - 22MM - 80MM
A15: MSI | B15: PRECISION | C15: X- | D15: 8G | H15: F4 | I15: C5 | L15: 2TB | M15: NVMe M.2 - 22MM - 110MM
B16: XPS | C16: AMD- | D16: 16G | L16: 3TB | M16: SATA M.2 - 22MM - 30MM
B17: ZBOOK | C17: I9- | D17: 32G | L17: 4TB | M17: SATA M.2 - 22MM - 42MM
B18: NOTEBOOK
B19: IDEAPAD
B20: THINKPAD
B21: TOUGHBOOK
B22: CF-
